[Event "Nakhchivan Open 2022"]
[Site "Nakhchivan"]
[Date "2022.05.09"]
[Round "2.3"]
[White "Babayev, Zaur"]
[Black "Haznedaroglu, Kivanc"]
[Result "0-1"]
[ECO "B48"]
[WhiteElo "1565"]
[BlackElo "2425"]
[Annotator "TA"]
[PlyCount "163"]
[EventDate "2022.05.08"]
[EventType "swiss"]
[EventCountry "AZE"]
[SourceTitle "playchess.com"]
[Source "ChessBase"]
[SourceQuality "1"]
[TimeControl "5400+30"]

{[%evp 14,163,33,4,4,-7,30,33,32,27,27,10,31,0,57,54,59,60,65,65,97,47,85,93,97,110,107,106,103,112,114,102,111,0,126,67,60,72,81,66,76,49,97,89,80,88,78,55,60,27,39,29,62,35,149,58,235,227,222,228,228,227,367,367,371,371,377,241,248,231,232,223,224,206,181,22,23,23,21,0,0,-377,0,0,0,0,0,0,45,45,42,31,51,28,74,29,154,154,154,164,143,31,31,0,0,0,23,23,23,0,0,0,0,0,0,0,0,0,0,0,0,0,8,0,0,0,0,0,0,0,0,0,10,3,21,22,23,19,19,19,683,654,1039,423,442,450,381,339,922,858,688,544]} 1. e4 {[%emt 0:00:04]} c5 {[%emt 0:00:07]} 2. Nf3 {[%emt 0:00:07]} e6 {[%emt 0:00:07]} 3. d4 {[%emt 0:00:06]} cxd4 {[%emt 0:00:07]} 4. Nxd4 {[%emt 0:00:02]} Nc6 {[%emt 0:00:21]} 5. Nc3 {[%emt 0:00:03]} Qc7 {[%emt 0:00:09]} 6. Be3 {[%emt 0:00:17]} a6 {[%emt 0:00:10]} 7. a3 b5 8. Be2 {[%emt 0:05:34]} Bb7 {[%emt 0:03:26] B48: Sicilian: Taimanov: 5 Nc3 Qc7 6 Be3 a6 without Be2.} 9. f4 {[%emt 0:09:36]} b4 {[%emt 0:03:18]} 10. axb4 {[%emt 0:00:30]} Bxb4 {[%emt 0:00:30] White is slightly better.} 11. O-O {[%emt 0:00:30]} Bxc3 {[%emt 0:00:30]} 12. bxc3 {[%emt 0:00:30]} Nf6 {[%emt 0:06:35]} 13. Bf3 {[%emt 0:16:03]} Ne7 {[%emt 0:01:04]} (13... Na5 $11) 14. Qd3 $14 {[%emt 0:00:30]} O-O {[%emt 0:00:30] [#]} 15. c4 $146 {[%emt 0:00:30]} ({Predecessor:} 15. Rfb1 Rab8 16. c4 d6 17. Ne2 Nd7 18. Rd1 Nc8 19. e5 Bxf3 20. gxf3 Rb4 21. exd6 Qxc4 22. Rxa6 Qxd3 23. Rxd3 {½-½ (60) Rabatin,J (2136)-Braun,M (2098) Kouty nad Desnou 2010}) 15... e5 16. Ne2 {[%cal Bd4e2,Be2c3,Bc3a4][%mdl 32]} (16. fxe5 {keeps more tension.} Qxe5 17. Bd2 Bxe4 18. Rfe1) 16... d6 {[%emt 0:08:04]} 17. Rfd1 {[%emt 0:17:45]} (17. fxe5 $16 dxe5 18. Nc3) 17... Ng6 {[%emt 0:05:08]} 18. f5 $1 {[%emt 0:12:56]} (18. Qxd6 Qxd6 19. Rxd6 Bxe4 $11) 18... Nh4 {[%emt 0:00:24]} 19. Nc3 {[%emt 0:06:41]} (19. Qxd6 Qxd6 20. Rxd6 Bxe4 21. Bxe4 Nxe4 $15) 19... Nxf3+ {[%emt 0:03:30]} 20. gxf3 {[%emt 0:00:03]} Rfc8 {[%emt 0:00:10]} 21. Na4 {[%emt 0:01:58]} (21. Qxd6 Qxd6 22. Rxd6 Rxc4 $11) 21... Rab8 {[%emt 0:01:13]} 22. Ba7 {[%emt 0:11:04]} (22. Qxd6 {seems wilder.} Qxc4 23. Ba7 Nxe4 24. Qd3) 22... Ra8 {[%emt 0:00:06]} 23. Be3 {[%emt 0:00:02]} ({White must play} 23. Bf2 $1 $16) 23... Re8 {[%emt 0:00:31]} (23... Rab8 $1 $11) 24. Qxd6 {[%emt 0:01:07]} (24. Bg5 $1 $16 {[%cal Rg5f6]}) 24... Qxc4 {[%emt 0:00:55]} 25. Qd3 {[%emt 0:05:23] Prevents Qe2.} Qc7 {[%emt 0:03:17]} 26. Rab1 {[%emt 0:05:06]} (26. Qb3 {is interesting.} Nxe4 27. fxe4 Bxe4 28. Nb6) 26... Nh5 {[%emt 0:03:36]} 27. Nc5 {[%emt 0:05:51]} Bc8 {[%emt 0:03:10]} (27... Rad8 $14 {feels stronger.} 28. Qb3 (28. Rxb7 Rxd3 29. cxd3 Qa5 $17) 28... Rxd1+ 29. Rxd1 Bc8) 28. Qd6 $16 {[%emt 0:00:25]} Qxd6 {[%emt 0:03:23]} 29. Rxd6 {[%emt 0:00:02]} g6 {[%emt 0:00:09]} 30. f6 {[%emt 0:01:22]} a5 {[%emt 0:02:11]} 31. Na4 {[%emt 0:00:59] aiming for Nb6.} (31. Ra1 $5 {[%cal Re3d2]}) 31... Be6 $1 {[%emt 0:00:21]} 32. Nb6 $36 {[%emt 0:00:32][%mdl 2048] Black is under pressure.} Ra6 {[%emt 0:00:19]} 33. c4 {[%emt 0:00:17]} Nxf6 {[%emt 0:00:29] [#]} ({Black should play} 33... a4 $14) 34. c5 {[%emt 0:00:12]} ({White should try} 34. Nd7 $1 $16 {[%cal Rd7f6][%mdl 512]} Rxd6 (34... Nxd7 35. Rxa6) 35. Nxf6+ Kf8 36. Rb7 Rd1+ 37. Kf2) 34... a4 $2 {[%emt 0:00:22] [#]} (34... Rb8 $14) 35. Nd7 $1 $18 {[%emt 0:00:41][%mdl 576] Discovered Attack} Nxd7 {[%emt 0:05:23]} 36. Rxa6 {[%emt 0:00:02]} Rc8 {[%emt 0:00:06]} 37. Rc1 {[%emt 0:00:50] c6 is the strong threat.} ({Much less strong is} 37. Rxa4 Nxc5 38. Ra3 Nd7) 37... Bb3 {[%emt 0:01:53]} (37... Nb8 {was necessary.} 38. Rxa4 Nc6) 38. c6 {[%emt 0:00:34]} Nf8 {[%emt 0:01:01]} 39. c7 {[%emt 0:00:41] Threatens to win with Bh6.} Ne6 {[%emt 0:00:07]} 40. Bb6 {[%emt 0:00:24]} Kf8 {[%emt 0:00:13]} 41. Ra7 {[%emt 0:00:41]} Ke7 {[%emt 0:00:26]} 42. Rb7 {[%emt 0:00:31]} Kd7 {[%emt 0:00:38]} 43. Rc3 {[%emt 0:00:06]} Nd4 {[%emt 0:03:59] Hoping for ...Ne2+.} 44. Rd3 $2 {[%emt 0:01:20]} (44. Kf2 $18) 44... Bc4 $1 $11 {[%emt 0:00:57]} 45. Rd1 {[%emt 0:00:18]} Bb3 $1 {[%emt 0:00:32]} 46. Rd2 {[%emt 0:00:41]} Kc6 {[%emt 0:00:07][%csl LRb7,LRf3]} 47. Rb8 $2 {[%emt 0:00:10][%mdl 8192]} (47. Bxd4 $11 {and White stays safe.} exd4 48. Rb4) 47... Rxc7 $2 {[%emt 0:00:44]} (47... Nxf3+ $19 48. Kg2 Nxd2) 48. Bxd4 {[%emt 0:00:36]} exd4 {[%emt 0:00:23]} 49. Rxd4 $19 {[%emt 0:00:05][%mdl 4096] Endgame KRR-KRB} Kc5 {[%emt 0:00:32]} 50. Rdb4 {[%emt 0:00:48]} Bc2 {[%emt 0:02:20]} 51. R8b5+ {[%emt 0:00:36]} Kd6 {[%emt 0:00:10]} 52. Kf2 {[%emt 0:00:46]} Rc3 {[%emt 0:00:13]} 53. Ra5 {[%emt 0:00:27]} h5 {[%emt 0:03:23]} (53... Bb3 $11 {was preferrable.}) 54. Rb6+ {[%emt 0:00:32]} Ke7 {[%emt 0:00:13]} (54... Kc7 $11 {remains equal.} 55. Rb4 Bb3) 55. Ra7+ $16 {[%emt 0:00:05]} Kf8 {[%emt 0:00:12]} 56. e5 {[%emt 0:00:56]} Bb3 {[%emt 0:00:21]} 57. Rf6 {[%emt 0:00:29]} ({Better is} 57. Rb8+ $16 Kg7 58. h4) 57... h4 $14 {[%emt 0:02:17]} 58. h3 {[%emt 0:00:20]} Rc2+ {[%emt 0:01:45]} 59. Kg1 {[%emt 0:00:38]} Rc5 {[%emt 0:00:06]} 60. f4 {[%emt 0:00:22]} Rc3 {[%emt 0:00:06]} 61. Ra8+ {[%emt 0:00:40]} (61. Rb6 $5 {[%cal Rb6b8]} Rc8 62. Rb4 $14) 61... Kg7 {[%emt 0:00:11]} 62. Kh2 {[%emt 0:00:24]} Rf3 {[%emt 0:02:59]} 63. Ra5 {[%emt 0:00:39]} Re3 {[%emt 0:01:40]} 64. Rd6 {[%emt 0:00:27]} Re4 {[%emt 0:00:35]} 65. Rf6 {[%emt 0:00:16]} Be6 {[%emt 0:00:15]} 66. Ra7 {[%emt 0:00:19] And now Rxe6 would win.} Bd5 {[%emt 0:00:31]} 67. Ra5 {[%emt 0:00:50]} Re2+ {[%emt 0:02:46]} 68. Kg1 {[%emt 0:00:02]} Bb3 {[%emt 0:00:17]} 69. Ra7 {[%emt 0:00:24]} Re3 {[%emt 0:02:19]} 70. Kh2 {[%emt 0:00:06]} Rf3 {[%emt 0:00:14]} 71. Ra5 {[%emt 0:00:39]} Rf2+ {[%emt 0:08:05]} 72. Kg1 {[%emt 0:00:03]} Ra2 {[%emt 0:00:05]} 73. Ra7 {[%emt 0:00:43]} Ra1+ {[%emt 0:00:17]} 74. Kf2 {[%emt 0:01:22] Strongly threatening Rb6.} Rh1 {[%emt 0:02:06]} 75. Rd6 {[%emt 0:00:14] Black must now prevent e6.} Rh2+ $1 {[%emt 0:00:10]} 76. Kg1 {[%emt 0:00:37]} Rxh3 $2 {[%emt 0:00:19][%mdl 8192] [#]} (76... Re2 $11) 77. e6 $1 $18 {[%emt 0:00:02]} Re3 {[%emt 0:01:58]} 78. e7 {[%emt 0:00:31]} (78. exf7 $142 {[%cal Od6g6] Threatening mate with Rxg6+!} Bxf7 79. Rdd7) 78... Bc4 {[%emt 0:00:25]} 79. Rd8 {[%emt 0:00:23]} Bb5 {[%emt 0:00:01] Inhibits e8Q.} 80. Rb8 {[%emt 0:00:59]} Re1+ $2 {[%emt 0:01:36]} (80... Bc6 81. Rc7 a3) 81. Kf2 {[%emt 0:00:16]} h3 {[%emt 0:00:01]} 82. Rxb5 {[%mdl 32768] Weighted Error Value: White=0.34/Black=0.34. Loss on time!?} ({Inferior is} 82. Kxe1 h2 83. Rxb5 (83. e8=N+ $2 Bxe8 84. Rxe8 h1=Q+ 85. Kf2 Qh2+ 86. Kf3 Qh3+ 87. Kf2 Qh2+ 88. Kf3 Qh1+ 89. Kf2 Qh2+ $19) 83... h1=Q+ 84. Kf2 Qe4 $11) 0-1

[Event "Nakhchivan Open 2022"]
[Site "Nakhchivan"]
[Date "2022.05.09"]
[Round "2.4"]
[White "Mammadov, Zaur"]
[Black "Gabulov, Ilkin"]
[Result "1-0"]
[ECO "B10"]
[WhiteElo "2410"]
[BlackElo "1573"]
[Annotator "TA"]
[PlyCount "54"]
[EventDate "2022.05.08"]
[EventType "swiss"]
[EventCountry "AZE"]
[SourceTitle "playchess.com"]
[Source "ChessBase"]
[SourceQuality "1"]
[TimeControl "5400+30"]

{[%evp 12,54,48,32,34,26,73,53,58,66,112,98,181,172,161,111,185,148,181,181,179,183,214,223,226,212,218,208,267,277,502,520,685,694,696,680,677,652,856,759,721,466,984,962,1001]} 1. e4 c6 2. c4 {[%emt 0:00:33]} d5 {[%emt 0:00:47]} 3. exd5 {[%emt 0:00:30]} cxd5 {[%emt 0:00:30]} 4. cxd5 {[%emt 0:00:30]} Nf6 {[%emt 0:00:30]} 5. Nc3 {[%emt 0:00:30]} g6 {[%emt 0:00:30]} 6. Bc4 {[%emt 0:00:30]} Bg7 {[%emt 0:00:30]} 7. Nge2 {[%emt 0:00:30]} O-O {[%emt 0:00:30] B10: Caro-Kann: 2 d3 and 2 c4.} 8. O-O Nbd7 {[%emt 0:02:29]} (8... Na6 $11 {was preferrable.}) 9. d3 $16 {[%emt 0:00:00][%cal Bd2d3,Bd3c4][%mdl 32]} Nb6 {[%emt 0:05:45] White is slightly better.} 10. Qb3 Nfd7 {[%emt 0:11:39] [#]} (10... Bd7 $14 {might be stronger.}) 11. Be3 $146 {[%emt 0:09:55] White is more active.} ({Predecessor:} 11. Bf4 Nc5 12. Qa3 Ncd7 13. Qb3 h6 14. h3 Kh7 15. d6 e5 16. Bh2 Nc5 17. Qa3 {1-0 (43) Steenbekkers,F (2164)-Zia,T (2071) Chess.com INT 2020}) 11... Nxc4 {[%emt 0:05:43]} (11... Ne5 $16 {might work better.}) 12. dxc4 $18 {[%emt 0:03:27]} (12. Qxc4 Re8 $11) 12... b6 {[%emt 0:00:10]} 13. a4 (13. Bd4 $18) 13... a5 {[%emt 0:26:56]} (13... Ne5 $16 {was necessary.}) 14. Rfd1 {[%emt 0:03:01]} Be5 {[%emt 0:02:54]} 15. Nb5 {[%emt 0:06:19]} Ba6 {[%emt 0:15:22]} 16. Ned4 {[%emt 0:00:30][%cal Be2d4,Bd4c6,Bc6e5,Be5d7,Bd7f6][%mdl 32] Pair of Knights!} Nc5 {[%emt 0:02:11]} 17. Qa3 {[%emt 0:00:01] [#] Black must now prevent Nc6.} Bxb5 {[%emt 0:01:09]} 18. axb5 {[%emt 0:00:35]} (18. Nxb5 Bg7 19. Bxc5 bxc5) 18... Qc7 {[%emt 0:02:02]} 19. g3 {[%emt 0:03:34] Strongly threatening Nc6.} a4 {[%emt 0:04:19]} 20. Nc6 {[%emt 0:01:17]} Nb3 {[%emt 0:06:51]} (20... Bd6 21. Qc3 Rfe8) 21. Qxe7 {[%emt 0:05:14] White is clearly winning.} Nxa1 {[%emt 0:04:45]} 22. Qxe5 {[%emt 0:00:07]} Qxe5 {[%emt 0:00:49]} 23. Nxe5 {[%emt 0:00:02]} Rfe8 {[%emt 0:01:51]} 24. Nd7 {[%emt 0:01:07]} a3 {[%emt 0:01:06]} 25. Nf6+ {[%emt 0:01:03]} ({But not} 25. Rxa1 $2 axb2 26. Nf6+ Kh8 $19) 25... Kf8 {[%emt 0:00:47]} 26. bxa3 {[%emt 0:00:06]} ({Not} 26. Rxa1 $2 axb2 27. Nxh7+ (27. Re1 $2 Rxe3 28. Nd7+ Kg7 $19) 27... Kg8 28. Nf6+ Kh8 $19) 26... Rxa3 {[%emt 0:02:50]} (26... Rxe3 $142 27. fxe3 Ke7 28. Nxh7 Nc2 29. d6+ Kd8) 27. d6 {[%emt 0:00:17][%cal Re3h6] [#]} Raxe3 {[%emt 0:00:33] Weighted Error Value: White=0.24 (precise) /Black=0.52} 1-0

[Event "Nakhchivan Open 2022"]
[Site "Nakhchivan"]
[Date "2022.05.09"]
[Round "2.5"]
[White "Hamidov, Allahverdi"]
[Black "Shahaliyev, Ismayil"]
[Result "0-1"]
[ECO "D30"]
[WhiteElo "1556"]
[BlackElo "2386"]
[Annotator "TA"]
[PlyCount "58"]
[EventDate "2022.05.08"]
[EventType "swiss"]
[EventCountry "AZE"]
[SourceTitle "playchess.com"]
[Source "ChessBase"]
[SourceQuality "1"]
[TimeControl "5400+30"]

{[%evp 26,58,0,-4,0,-15,-16,-20,-22,-27,-28,-28,-27,-28,-28,-28,-20,-45,-14,-28,-11,-6,-12,-32,-27,-198,-200,-427,-24,-708,-699,-796,-676,-675,-642]} 1. d4 d5 {[%emt 0:00:24]} 2. c4 {[%emt 0:00:19]} e6 {[%emt 0:00:30]} 3. cxd5 {[%emt 0:00:30]} exd5 {[%emt 0:00:30]} 4. Nc3 {[%emt 0:00:30]} Be7 {[%emt 0:00:00]} 5. Nf3 {[%emt 0:00:00]} Nf6 {[%emt 0:00:00]} 6. Bg5 {[%emt 0:00:00]} c6 {[%emt 0:00:02]} 7. Qc2 {[%emt 0:00:00]} g6 {[%emt 0:00:07]} 8. e3 {[%emt 0:00:00]} Bf5 {[%emt 0:00:04]} 9. Bd3 {[%emt 0:00:08]} Bxd3 10. Qxd3 {[%emt 0:00:01]} Nbd7 {[%emt 0:00:14]} 11. O-O {[%emt 0:00:21]} O-O {[%emt 0:01:43]} 12. Rab1 a5 13. a3 {[%emt 0:06:08]} Re8 {[%emt 0:00:34]} 14. Qc2 {[%emt 0:04:31]} Ra6 {[%emt 0:11:53] D36: Queen's Gambit Declined: Exchange Variation: Main line (5 Bg5 c6 6 Qc2).} 15. b4 {[%emt 0:00:30]} b5 {[%emt 0:02:30]} 16. Bxf6 Nxf6 {[%emt 0:05:50] The position is equal.} 17. Ne5 {[%emt 0:04:50]} axb4 {[%emt 0:10:10]} 18. axb4 {[%emt 0:00:17] [#]} Bd6 $146 {[%emt 0:00:24]} ({Predecessor:} 18... Nd7 19. Nd3 Nb6 20. Ra1 Qa8 21. Rxa6 Qxa6 22. e4 dxe4 23. Nxe4 Nd5 24. g3 Kg7 {0-1 (44) Arias,L (2267)-Kanep,M (2509) Turin 2006}) 19. Nd3 {[%emt 0:01:10]} Qa8 20. Nc5 {[%emt 0:11:46]} Bxc5 {[%emt 0:10:05]} 21. bxc5 {[%emt 0:00:10]} Ra3 {[%emt 0:04:26]} 22. Rb3 {[%emt 0:03:10]} Qa5 {[%emt 0:06:26]} 23. Rxa3 {[%emt 0:02:20]} Qxa3 {[%emt 0:00:13]} 24. Ne2 {[%emt 0:02:17]} Ra8 {[%emt 0:08:21] White must now prevent ...b4.} 25. Nf4 $2 {[%emt 0:01:40]} (25. Rb1 $11) 25... b4 $1 $19 {[%emt 0:05:03][%cal Bb5b4,Bb4b3][%mdl 32] Hoping for ...b3.} 26. Rb1 {[%emt 0:09:25] [#] Against b3} (26. Nd3 {keeps fighting.}) 26... Ne4 $2 {[%emt 0:03:59]} (26... b3 $1 $19 {[%cal Rb3c2]} 27. Qd1 Ne4) 27. Ne2 $2 {[%emt 0:02:46][%mdl 8192] [#]} (27. h4 $11) 27... b3 $1 {[%emt 0:04:18] Black is clearly winning.} 28. Qd3 {[%emt 0:02:51]} b2 {[%emt 0:01:20]} 29. Qc2 {[%emt 0:00:41]} Qa1 {[%emt 0:00:40] Weighted Error Value: White=0.88/Black=0.39} 0-1

[Event "Nakhchivan Open 2022"]
[Site "Nakhchivan"]
[Date "2022.05.09"]
[Round "2.6"]
[White "Gasimov, Parviz"]
[Black "Mehtizada, Murad"]
[Result "1-0"]
[ECO "B01"]
[WhiteElo "2331"]
[BlackElo "1564"]
[Annotator "TA"]
[PlyCount "59"]
[EventDate "2022.05.08"]
[EventType "swiss"]
[EventCountry "AZE"]
[SourceTitle "playchess.com"]
[Source "ChessBase"]
[SourceQuality "1"]
[TimeControl "5400+30"]

{[%evp 11,59,54,60,45,58,41,59,51,50,47,53,48,83,84,131,84,115,115,112,105,112,116,222,222,222,216,216,216,320,318,721,714,677,646,1300,589,621,605,602,574,737,758,731,657,713,692,1267,1232,1082,956]} 1. e4 {[%emt 0:00:04]} d5 {[%emt 0:00:00]} 2. exd5 {[%emt 0:00:16]} Nf6 {[%emt 0:00:01]} 3. d4 {[%emt 0:03:13]} Bg4 4. Nf3 {[%emt 0:04:34]} Qxd5 {[%emt 0:00:13]} 5. Be2 {[%emt 0:01:26]} e6 {[%emt 0:03:12]} 6. O-O {[%emt 0:04:40]} Nc6 7. h3 {[%emt 0:13:01] [#] Threatens to win with Nc3. B01: Scandinavian Defence.} Bh5 {[%emt 0:01:24]} 8. Be3 {[%emt 0:00:30]} Be7 {[%emt 0:07:03]} 9. Nbd2 {[%emt 0:10:46] White is slightly better.} O-O {[%emt 0:01:52]} 10. c4 {[%emt 0:07:38]} Qd8 {[%emt 0:09:45]} 11. Qb3 {[#]} Bxf3 $146 ({Predecessor:} 11... Rb8 12. Rfd1 Na5 13. Qc3 b6 14. b4 Nb7 15. g4 Bg6 16. Ne5 Qe8 17. Bf3 Nd8 {1-0 (24) Strobel,W (2189)-Alvarez,L (1849) Buesum 2017}) 12. Nxf3 {[%emt 0:03:49] White leaves nothing to chance now.} ({Don't play} 12. Bxf3 Nxd4 13. Qxb7 Qd6 $11) 12... a5 {[%emt 0:02:40]} (12... Qc8 $142) 13. a3 {[%emt 0:06:17]} ({White should try} 13. Qxb7 Nb4 14. Ne5) 13... a4 {[%emt 0:06:55]} 14. Qxb7 {[%emt 0:06:08]} Qd7 {[%emt 0:10:57]} 15. Ne5 {[%emt 0:03:10]} Nxe5 {[%emt 0:00:21]} 16. dxe5 {[%emt 0:00:07]} Rfb8 {[%emt 0:00:43]} 17. Qf3 $18 {[%emt 0:00:08]} Ne8 {[%emt 0:00:09]} 18. Rfd1 {[%emt 0:00:40][%cal Bf1d1,Bd1d2,Bd2d7][%mdl 32]} Qc8 {[%emt 0:00:08]} 19. Rd2 {[%emt 0:01:35]} f6 {[%emt 0:00:44]} (19... c5 $142 20. Qe4 Ra7) 20. Rad1 {[%emt 0:06:39]} fxe5 $2 {[%emt 0:04:21]} (20... c6 21. exf6 Nxf6) 21. Rd7 {[%emt 0:00:13] White is clearly winning.} Bf6 {[%emt 0:00:43]} 22. Qg4 {[%emt 0:04:41] Bg5 is the strong threat.} (22. Qh5 Nd6 23. R1xd6 cxd6 24. Rxd6 Ra6 25. Rxa6 Qxa6 $14) 22... Rxb2 {[%emt 0:05:45]} 23. c5 {[%emt 0:04:15]} (23. Bg5 $142 {Intending Bxf6 and mate.} h5 24. Qxe6+ Kh8 {[#]} 25. Qf7 $1) 23... Rxe2 {[%emt 0:03:02]} 24. Qxe2 {[%emt 0:00:22]} Nd6 {[%emt 0:00:14]} 25. c6 {[%emt 0:00:16]} ({Stronger than} 25. cxd6 Qxd7 26. dxc7 Qxc7 $11) 25... Rb8 {[%emt 0:13:55]} 26. Bc5 {[%emt 0:00:13]} Nf5 {[%emt 0:03:32]} 27. Qc4 {[%emt 0:00:18][%csl LRa4,LRe6]} Qe8 {[%emt 0:01:32]} 28. Rxc7 {[%emt 0:00:20]} Nd4 {[%emt 0:02:15]} 29. Bxd4 {[%emt 0:00:49] Strongly threatening Bc3.} exd4 {[%emt 0:00:02]} 30. Re1 {[%emt 0:00:06] Weighted Error Value: White=0.36/Black=0.27 (precise)} 1-0

[Event "Nakhchivan Open 2022"]
[Site "Nakhchivan"]
[Date "2022.05.09"]
[Round "3.1"]
[White "Lorparizangeneh, Shahin"]
[Black "Khaledi, Omid"]
[Result "1-0"]
[ECO "E73"]
[WhiteElo "2502"]
[BlackElo "2025"]
[Annotator "TA"]
[PlyCount "87"]
[EventDate "2022.05.08"]
[EventType "swiss"]
[EventCountry "AZE"]
[SourceTitle "playchess.com"]
[Source "ChessBase"]
[SourceQuality "1"]
[TimeControl "5400+30"]

{[%evp 13,87,17,22,7,29,25,43,27,45,50,51,51,42,39,41,25,31,24,35,0,55,54,74,68,94,82,106,106,112,100,168,162,169,185,162,106,246,208,228,201,223,190,272,254,324,272,322,289,289,277,191,183,441,408,428,425,432,420,418,398,343,298,534,370,384,366,391,420,408,408,377,386,398,374,563,514]} 1. d4 {[%emt 0:00:49]} Nf6 {[%emt 0:00:21]} 2. c4 {[%emt 0:00:05]} g6 {[%emt 0:00:10]} 3. Nc3 {[%emt 0:00:06]} Bg7 {[%emt 0:00:03]} 4. e4 {[%emt 0:00:03]} O-O {[%emt 0:00:07]} 5. Be2 {[%emt 0:00:12]} d6 {[%emt 0:00:09]} 6. Bg5 {[%emt 0:00:10]} c5 {[%emt 0:00:39]} 7. d5 {[%emt 0:00:15]} e6 {[%emt 0:00:54]} 8. Qc1 {[%emt 0:02:07] E75: King's Indian: Averbakh Variation: 6...c5 7 d5 e6.} exd5 {[%emt 0:02:22]} 9. exd5 {[%emt 0:00:16]} Qb6 {[%emt 0:02:43]} 10. Nf3 {[%emt 0:01:42] White is slightly better.} Re8 {[%emt 0:14:05]} 11. O-O {[%emt 0:03:06] [#]} Bg4 $146 {[%emt 0:00:34]} ({Predecessor:} 11... Na6 12. Bd3 Nb4 13. Bb1 Bg4 14. Nd2 Be2 15. Nxe2 Rxe2 16. a3 Na6 17. Bd3 Ree8 {1-0 (80) Zubov,A (2601)-Kryakvin,D (2529) Minsk 2015}) 12. h3 {[%emt 0:14:32]} Bxf3 {[%emt 0:06:23]} 13. Bxf3 {[%emt 0:00:05]} Nbd7 {[%emt 0:00:39]} 14. Qf4 {[%emt 0:03:43]} a6 {[%emt 0:18:34]} (14... Qxb2 15. Nb5 $16) 15. Rab1 {[%emt 0:04:32]} Re5 {[%emt 0:01:38]} 16. Qg3 {[%emt 0:08:26]} Bf8 {[%emt 0:00:56]} (16... Qb4 $11) 17. b3 $14 {[%emt 0:09:34]} h6 {[%emt 0:07:31]} 18. Bd2 {[%emt 0:03:11]} Qc7 {[%emt 0:05:44]} 19. Qh4 {[%emt 0:05:37]} Kh7 {[%emt 0:15:34]} 20. Bd1 {[%emt 0:03:03]} Ree8 {[%emt 0:01:15]} 21. Bc2 {[%emt 0:03:37]} Ng8 {[%emt 0:02:46]} (21... Qa5 $16) 22. g4 $18 {[%emt 0:07:19][%cal Bg2g4,Bg4g5][%mdl 32]} Qd8 {[%emt 0:08:27]} 23. Qg3 {[%emt 0:00:51]} b5 {[%emt 0:03:17]} 24. f4 {[%emt 0:06:00][%cal Bf2f4,Bf4f5][%mdl 32] Strongly threatening f5.} Ra7 {[%emt 0:00:25] Black cannot hold the game after this.} (24... b4 $16 {keeps fighting.}) 25. h4 {[%emt 0:00:59]} Bg7 {[%emt 0:01:56]} 26. g5 {[%emt 0:02:31]} Bd4+ {[%emt 0:01:06] [#]} 27. Kh1 $1 {[%emt 0:00:47] And now f5 would win.} h5 {[%emt 0:02:59]} (27... Kh8 $142 28. h5 (28. cxb5 Ne7 $16) 28... Ne7) 28. Ne4 {[%emt 0:03:00][%cal Bc3e4,Be4f2,Bf2g4][%mdl 32]} Nf8 {[%emt 0:02:04]} 29. f5 {[%emt 0:00:19]} Be5 {[%emt 0:00:47]} 30. Qf3 {[%emt 0:01:35]} Nh6 {[%emt 0:00:12]} 31. fxg6+ {[%emt 0:14:33]} fxg6 {[%emt 0:00:13]} 32. Nf2 {[%emt 0:00:13]} Ng8 {[%emt 0:01:22]} (32... Ng4) 33. Qxh5+ {[%emt 0:00:30]} Kg7 {[%emt 0:00:01]} 34. Qg4 {[%emt 0:00:26]} Qc8 {[%emt 0:00:20]} 35. Qg2 {[%emt 0:01:27]} Kh8 {[%emt 0:00:39]} 36. Ng4 {[%emt 0:00:49]} Rh7 {[%emt 0:00:03]} 37. Nh6 {[%emt 0:00:20] Active counter play!} Qd7 $2 {[%emt 0:01:29]} (37... Nxh6 {might work better.} 38. gxh6 Rb7) 38. Rf3 {[%emt 0:00:51]} Nxh6 {[%emt 0:00:26]} 39. gxh6 {[%emt 0:00:02]} Rf7 {[%emt 0:00:01]} 40. Rbf1 {[%emt 0:00:47]} Rxf3 {[%emt 0:00:16]} 41. Qxf3 {[%emt 0:00:08] [#] Threatens to win with h5.} ({Less strong is} 41. Rxf3 Rb8 42. Qf1 (42. Bxg6 Nxg6 43. Qxg6 Qh7 $16) 42... Kg8 $18) 41... Nh7 {[%emt 0:00:23]} 42. Bxg6 {[%emt 0:01:18]} Qe7 {[%emt 0:01:15]} 43. Qe4 {[%emt 0:01:31]} Nf6 {[%emt 0:00:41]} (43... Rf8 $142 44. Rxf8+ Nxf8) 44. Qf5 {[%emt 0:00:25] Weighted Error Value: White=0.15 (very precise) /Black=0.32} 1-0